[Event "43rd Blackpool Chess Conference 2019"]
[Site "Blackpool"]
[Date "2019.03.08"]
[Round "1.1"]
[White "Hebden, Mark L"]
[Black "Walker, Nicholas A"]
[Result "1-0"]
[ECO "D06"]
[WhiteElo "2417"]
[BlackElo "1976"]
[Annotator "RC"]
[PlyCount "59"]
[EventDate "2019.03.08"]
[EventType "swiss"]
[EventCountry "ENG"]
[SourceTitle "playchess.com"]
[Source "ChessBase"]
[SourceQuality "1"]
[TimeControl "6600+10"]

1. d4 {[%emt 0:00:00]} d5 {[%emt 0:00:00]} 2. c4 {[%emt 0:00:19]} Bf5 {[%emt 0:00:10]} 3. cxd5 {[%emt 0:02:58]} Bxb1 {[%emt 0:00:09]} 4. Qa4+ {[%emt 0:00:21]} Qd7 {[%emt 0:01:32]} 5. Qxd7+ {[%emt 0:00:36]} Nxd7 {[%emt 0:00:08]} 6. Rxb1 {[%emt 0:00:05]} Ngf6 {[%emt 0:00:18]} 7. a3 {[%emt 0:00:10]} Nxd5 {[%emt 0:01:15]} 8. e4 {[%emt 0:03:30]} N5f6 {[%emt 0:01:00]} 9. f3 {[%emt 0:03:49]} e5 {[%emt 0:01:25]} 10. d5 {[%emt 0:09:21]} Bc5 {[%emt 0:00:56]} 11. Bc4 {[%emt 0:00:56]} O-O {[%emt 0:01:37]} 12. Ne2 {[%emt 0:00:10]} Rfd8 {[%emt 0:02:44]} 13. Nc3 {[%emt 0:01:02]} Rac8 {[%emt 0:02:38]} 14. Ke2 {[%emt 0:02:00]} Nb6 {[%emt 0:03:28]} 15. Bb3 {[%emt 0:02:11]} c6 {[%emt 0:00:57]} 16. Bg5 {[%emt 0:00:48]} Rd6 {[%emt 0:06:19]} 17. Rhd1 {[%emt 0:02:25]} h6 {[%emt 0:02:42]} 18. Bh4 {[%emt 0:02:18]} Bd4 {[%emt 0:04:44]} 19. dxc6 {[%emt 0:00:53]} bxc6 {[%emt 0:00:30]} 20. Ba2 {[%emt 0:03:19]} Nh5 {[%emt 0:06:45]} 21. Kf1 {[%emt 0:00:31]} Nf4 {[%emt 0:01:50]} 22. Be1 {[%emt 0:03:37]} Rcd8 {[%emt 0:02:48]} 23. g3 {[%emt 0:01:18]} Ne6 {[%emt 0:04:44]} 24. Ne2 {[%emt 0:00:38]} g5 {[%emt 0:07:51]} 25. Bb4 {[%emt 0:07:37]} c5 {[%emt 0:00:57]} 26. Ba5 {[%emt 0:00:14]} Rb8 {[%emt 0:04:26]} 27. b4 {[%emt 0:00:39]} Nd7 {[%emt 0:06:32]} 28. Nc3 {[%emt 0:08:12]} Nf6 {[%emt 0:02:21]} 29. Nd5 {[%emt 0:03:48]} Nxd5 {[%emt 0:00:32]} 30. exd5 {[%emt 0:00:20]} 1-0

[Event "43rd Blackpool Chess Conference 2019"]
[Site "Blackpool"]
[Date "2019.03.08"]
[Round "1.2"]
[White "Frew, Elliot"]
[Black "Quillan, Gary"]
[Result "0-1"]
[ECO "C05"]
[WhiteElo "2080"]
[BlackElo "2353"]
[Annotator "NA RC"]
[PlyCount "100"]
[EventDate "2019.03.08"]
[EventType "swiss"]
[EventCountry "ENG"]
[SourceTitle "playchess.com"]
[Source "ChessBase"]
[SourceQuality "1"]
[TimeControl "6600+10"]

1. e4 {[%emt 1:50:10]} e6 {[%emt 1:50:10]} 2. d4 {[%emt 0:00:10]} d5 {[%emt 0:00:10]} 3. Nd2 {[%emt 0:00:10]} Nf6 {[%emt 0:00:10]} 4. e5 {[%emt 0:00:10]} Nfd7 {[%emt 0:00:10]} 5. f4 {[%emt 0:00:10]} c5 {[%emt 0:00:10]} 6. c3 {[%emt 0:00:10]} Nc6 {[%emt 0:00:10]} 7. Ndf3 {[%emt 0:00:10]} Qb6 {[%emt 0:00:10]} 8. a3 {[%emt 0:00:10]} a5 {[%emt 0:00:10]} 9. b3 {[%emt 0:00:10] C05: French Tarrasch: 3...Nf6 4 e5 Nfd7, 5 f4 and 5 Bd3 sidelines} Be7 {[%emt 0:00:10]} 10. h4 {[%emt 0:00:10]} Qc7 {[%emt 0:00:10]} 11. Be3 {[%emt 0:00:10]} cxd4 $146 {[%emt 0:00:10]} ({Predecessor:} 11... b6 12. Nh3 cxd4 13. cxd4 Ndb8 14. Bd3 h5 15. Qc2 Qd7 16. f5 exf5 {½-½ (46) Motwani,P (2505)-Dgebuadze,A (2550) Belgium 2001}) 12. cxd4 {[%emt 0:00:10]} Nb6 {[%emt 0:00:10]} 13. Bd3 {[%emt 0:00:10]} Bd7 14. Ne2 {[%emt 0:00:10]} f5 {[%emt 0:00:20]} 15. O-O {[%emt 0:00:10]} h6 {[%emt 0:00:10]} 16. Qe1 {[%emt 0:00:10]} O-O {[%emt 0:00:10]} 17. Nc3 {[%emt 0:00:10]} Be8 {[%emt 0:00:10]} 18. Nb5 {[%emt 0:00:10]} Qd7 {[%emt 0:00:10]} 19. Rc1 {[%emt 0:00:10]} Bh5 {[%emt 0:00:10]} 20. a4 {[%emt 0:00:10]} Rac8 {[%emt 0:00:10]} 21. Bd2 {[%emt 0:00:10]} Nb4 {[%emt 0:00:10]} 22. Bxb4 {[%emt 0:00:10]} Bxb4 {[%emt 0:00:10]} 23. Qe3 $11 {[%emt 0:00:10]} Na8 {[%emt 0:00:10]} 24. g3 Nc7 {[%emt 0:00:10]} 25. Ne1 Nxb5 {[%emt 0:00:10]} 26. Bxb5 Qe7 {[%emt 0:00:10]} 27. Nd3 Ba3 {[%emt 0:00:10]} 28. Rxc8 Rxc8 {[%emt 0:00:10]} 29. Qd2 b6 {[%emt 0:00:10]} 30. Kf2 Bb4 {[%emt 0:00:10]} 31. Nxb4 Qxb4 {[%emt 0:00:10]} 32. Qxb4 Rc2+ {[%emt 0:00:10]} 33. Ke3 axb4 {[%emt 0:00:10]} 34. Rg1 Rc3+ {[%emt 0:00:10]} 35. Bd3 Rxb3 {[%emt 0:00:10]} 36. Rb1 Rxb1 {[%emt 0:00:10]} 37. Bxb1 Bd1 {[%emt 0:00:10]} 38. Kd2 Bxa4 {[%emt 0:00:10]} 39. Bd3 Kf7 {[%emt 0:00:10]} 40. Be2 Bb3 {[%emt 0:00:10]} 41. h5 Bc4 {[%emt 0:00:10]} 42. Bd1 Bf1 {[%emt 0:00:10]} 43. Kc2 Bh3 {[%emt 0:00:10]} 44. Kb3 Bg4 {[%emt 0:00:10]} 45. Bc2 Bxh5 {[%emt 0:00:10]} 46. Kxb4 Be2 {[%emt 0:00:10]} 47. Kc3 g5 {[%emt 0:00:10]} 48. fxg5 hxg5 {[%emt 0:00:10]} 49. Kd2 Bc4 50. Ke3 b5 0-1

[Event "43rd Blackpool Chess Conference 2019"]
[Site "Blackpool"]
[Date "2019.03.08"]
[Round "1.3"]
[White "McPhillips, Joseph"]
[Black "Wolstencroft, Darryl"]
[Result "1-0"]
[ECO "C00"]
[WhiteElo "2407"]
[BlackElo "2196"]
[Annotator "RC"]
[PlyCount "91"]
[EventDate "2019.03.08"]
[EventType "swiss"]
[EventCountry "ENG"]
[SourceTitle "playchess.com"]
[Source "ChessBase"]
[SourceQuality "1"]
[TimeControl "6600+10"]

1. e4 {[%emt 0:00:00]} e6 {[%emt 0:01:36]} 2. c3 {[%emt 0:00:00]} d5 {[%emt 0:01:02]} 3. Bd3 {[%emt 0:00:01]} dxe4 {[%emt 0:03:10]} 4. Bxe4 {[%emt 0:00:02]} Nf6 {[%emt 0:00:27]} 5. Bc2 {[%emt 0:00:15]} Be7 {[%emt 0:00:58]} 6. d4 {[%emt 0:04:38]} Nbd7 {[%emt 0:03:07]} 7. Nf3 {[%emt 0:01:16]} b6 {[%emt 0:03:48]} 8. Ba4 {[%emt 0:06:05]} O-O {[%emt 0:03:54]} 9. Bc6 {[%emt 0:08:52]} Rb8 {[%emt 0:08:37]} 10. b4 {[%emt 0:01:01]} b5 {[%emt 0:11:21]} 11. a4 {[%emt 0:04:52]} bxa4 {[%emt 0:04:59]} 12. Bxa4 {[%emt 0:00:05]} a6 {[%emt 0:06:38]} 13. O-O {[%emt 0:00:19]} Bb7 {[%emt 0:00:37]} 14. Re1 {[%emt 0:02:06]} Nb6 {[%emt 0:05:24]} 15. Bc2 {[%emt 0:00:26]} Nbd5 {[%emt 0:02:45]} 16. Ne5 {[%emt 0:06:09]} Nxb4 {[%emt 0:08:01]} 17. cxb4 {[%emt 0:00:38]} Bxb4 {[%emt 0:00:04]} 18. Re2 {[%emt 0:30:07]} Qd5 {[%emt 0:02:26]} 19. Nf3 {[%emt 0:03:43]} Qh5 {[%emt 0:08:49]} 20. Re5 {[%emt 0:05:21]} Qg4 {[%emt 0:07:35]} 21. Be3 {[%emt 0:07:53]} h6 {[%emt 0:02:54]} 22. Nbd2 {[%emt 0:09:30]} Bxd2 {[%emt 0:06:54]} 23. Bxd2 {[%emt 0:00:13]} Rfd8 {[%emt 0:00:39]} 24. Be3 {[%emt 0:02:40]} Bxf3 {[%emt 0:07:24]} 25. Qxf3 {[%emt 0:00:09]} Qxf3 {[%emt 0:00:11]} 26. gxf3 {[%emt 0:00:03]} Nd5 {[%emt 0:00:16]} 27. Be4 {[%emt 0:01:36]} Nb4 {[%emt 0:01:02]} 28. f4 {[%emt 0:02:00]} f5 {[%emt 0:00:44]} 29. Bf3 {[%emt 0:00:51]} Kf7 {[%emt 0:00:47]} 30. Rc5 {[%emt 0:00:26]} Rd7 {[%emt 0:00:17]} 31. h4 {[%emt 0:01:00]} Rb5 {[%emt 0:00:53]} 32. Rxb5 {[%emt 0:02:01]} axb5 {[%emt 0:00:02]} 33. Rc1 {[%emt 0:00:18]} Nd5 {[%emt 0:00:38]} 34. Rc5 {[%emt 0:01:02]} b4 {[%emt 0:00:23]} 35. Bxd5 {[%emt 0:00:25]} exd5 {[%emt 0:00:27]} 36. Rb5 {[%emt 0:00:23]} Kg6 {[%emt 0:01:15]} 37. Kg2 {[%emt 0:00:25]} Kh5 {[%emt 0:00:11]} 38. Kg3 {[%emt 0:00:13]} Rd6 {[%emt 0:00:13]} 39. Rxb4 {[%emt 0:00:10]} Rg6+ {[%emt 0:00:08]} 40. Kf3 {[%emt 0:00:06]} Rg1 {[%emt 0:00:15]} 41. Rb5 {[%emt 0:00:51]} c6 {[%emt 0:00:04]} 42. Rc5 {[%emt 0:00:03]} Rg6 {[%emt 0:00:31]} 43. Rc1 {[%emt 0:00:27]} Re6 {[%emt 0:01:12]} 44. Rg1 {[%emt 0:00:02]} Re7 {[%emt 0:00:25]} 45. Bd2 {[%emt 0:00:24]} Rb7 {[%emt 0:00:14]} 46. Rc1 {[%emt 0:00:49]} 1-0

[Event "43rd Blackpool Chess Conference 2019"]
[Site "Blackpool"]
[Date "2019.03.08"]
[Round "1.4"]
[White "Paul, Nathanael"]
[Black "Merriman, John"]
[Result "0-1"]
[ECO "D00"]
[WhiteElo "1924"]
[BlackElo "2238"]
[Annotator "NA RC"]
[PlyCount "92"]
[EventDate "2019.03.08"]
[EventType "swiss"]
[EventCountry "ENG"]
[SourceTitle "playchess.com"]
[Source "ChessBase"]
[SourceQuality "1"]
[TimeControl "6600+10"]

{[%evp 9,75,-14,32767,-7,32767,-5,32767,32767,54,32767,56,39,58,34,44,39,41,-21,-16,32767,32767,-87,-56,32767,-49,-198,-212,32767,-199,-285,-304,-266,-241,-250,32767,32767,32767,32767,32767,32767,32767,32767,-126,32767,32767,32767,32767,-179,-140,-182,32767,32767,-245,-253,-301,-263,-275,-259,32767,-327,-387,-416,-321,-331,-332,-414,-466,-457]} 1. d4 {[%emt 0:00:00]} e6 {[%emt 0:01:04]} 2. Nc3 {[%emt 0:00:46]} d5 {[%emt 0:01:38]} 3. Bf4 {[%emt 0:00:09]} Nf6 {[%emt 0:01:51]} 4. Nb5 {[%emt 0:04:07]} Na6 {[%emt 0:05:56]} 5. a3 {[%emt 0:00:04] LiveBook: 24 Games} (5. e3 Be7 6. Nf3 O-O 7. Bd3 c6 8. Nc3 Nb4 9. h3 Nxd3+ 10. cxd3 b6 11. O-O Bb7 {0-1 (40) Rapport,R (2731)-Giri,A (2783) Wijk aan Zee 2019}) 5... Nh5 {[%emt 0:13:37]} 6. Be5 {[%emt 0:00:48] D00: 1 d4 d5: Unusual lines} f6 {[%emt 0:04:08]} 7. e3 {[%emt 0:02:15]} g6 {[%emt 0:00:11]} 8. g4 $146 {[%emt 0:04:37]} ({Predecessor:} 8. Bg3 Nxg3 9. hxg3 c6 10. Nc3 e5 11. Bxa6 bxa6 {1-0 (22) Marczuk,D (2274)-Skawinski,A (2419) Krakow 2018}) 8... Ng7 {[%emt 0:02:08]} ({Black should play} 8... fxe5 $15 9. gxh5 c6) 9. Bg3 {[%emt 0:01:56]} c6 {[%emt 0:02:26]} 10. Nc3 {[%emt 0:00:04]} Bd6 {[%emt 0:01:34]} 11. Bxd6 {[%emt 0:03:17]} Qxd6 {[%emt 0:00:03]} 12. Bxa6 {[%emt 0:00:09]} bxa6 {[%emt 0:00:03]} 13. Na4 {[%emt 0:00:08]} (13. Qf3 $14) 13... e5 {[%emt 0:03:50]} 14. c3 {[%emt 0:00:28]} a5 {[%emt 0:09:27]} 15. h3 {[%emt 0:10:32]} h5 {[%emt 0:03:16]} 16. g5 {[%emt 0:01:44]} fxg5 {[%emt 0:08:41]} 17. dxe5 {[%emt 0:14:02]} (17. Nf3 $17) 17... Qxe5 {[%emt 0:00:33]} 18. Qd4 {[%emt 0:00:36] [#]} Qe7 $1 {[%emt 0:01:29]} 19. Nf3 {[%emt 0:00:54]} (19. Qc5 $142 Qc7 20. b4) 19... O-O {[%emt 0:01:46]} 20. Ne5 {[%emt 0:06:45]} Qd6 {[%emt 0:08:09]} 21. Nd3 {[%emt 0:02:33]} Bf5 {[%emt 0:05:12]} 22. Nac5 {[%emt 0:03:57]} Rab8 {[%emt 0:07:59]} 23. O-O-O {[%emt 0:02:23]} Bxd3 {[%emt 0:03:13]} 24. Nxd3 {[%emt 0:00:11]} Ne6 {[%emt 0:00:25]} 25. Qa4 {[%emt 0:03:26]} Nc5 {[%emt 0:00:32]} 26. Nxc5 {[%emt 0:00:37]} Qxc5 {[%emt 0:00:01]} 27. Qc2 {[%emt 0:02:20]} Kh7 {[%emt 0:00:34]} 28. Rhg1 {[%emt 0:02:00]} Rf5 {[%emt 0:00:20]} 29. Rd4 {[%emt 0:01:01]} Rbf8 {[%emt 0:02:18]} 30. Rg2 {[%emt 0:01:15]} Qe7 {[%emt 0:00:44]} 31. Kb1 {[%emt 0:04:24]} Rf3 {[%emt 0:00:40]} 32. c4 {[%emt 0:02:24]} R8f5 {[%emt 0:04:51]} 33. cxd5 {[%emt 0:02:17]} cxd5 {[%emt 0:00:13]} 34. e4 {[%emt 0:00:46]} dxe4 {[%emt 0:01:18]} 35. Rc4 {[%emt 0:02:04]} Rf7 {[%emt 0:00:57]} 36. Rxe4 {[%emt 0:11:27]} Qf6 {[%emt 0:00:23]} 37. Ka2 {[%emt 0:00:17]} Rxh3 {[%emt 0:01:15]} 38. f4 $19 {[%emt 0:05:37]} gxf4 {[%emt 0:01:21]} 39. Re8 {[%emt 0:00:16]} Rg3 {[%emt 0:02:12]} 40. Rh2 {[%emt 0:03:29]} Qf5 {[%emt 0:01:14]} 41. Qc4 {[%emt 0:01:30]} Re3 {[%emt 0:00:39]} 42. Re2 {[%emt 0:02:02]} Rxe2 {[%emt 0:01:01]} 43. Rxe2 {[%emt 0:00:06]} f3 {[%emt 0:01:11]} 44. Re5 {[%emt 0:01:00]} Qf4 {[%emt 0:01:23]} 45. Qc3 {[%emt 0:00:50]} f2 {[%emt 0:01:14]} 46. Re8 {[%emt 0:00:04]} Qf6 {[%emt 0:00:24]} 0-1

[Event "43rd Blackpool Chess Conference 2019"]
[Site "Blackpool"]
[Date "2019.03.08"]
[Round "1.5"]
[White "Han, Yichen"]
[Black "Hymer, Barry"]
[Result "1-0"]
[ECO "B06"]
[WhiteElo "2190"]
[BlackElo "1893"]
[Annotator "NA RC"]
[PlyCount "68"]
[EventDate "2019.03.08"]
[EventType "swiss"]
[EventCountry "ENG"]
[SourceTitle "playchess.com"]
[Source "ChessBase"]
[SourceQuality "1"]
[TimeControl "6600+10"]

{[%evp 18,68,78,32767,32767,32767,44,47,64,10,32767,24,32767,22,8,-73,32767,32767,-68,-59,-74,-64,-79,32767,32767,32767,32767,32767,32767,32767,32767,32767,32767,32767,32767,32767,32767,0,0,-87,123,12,543,625,32767,1120,29991,29976,29993,29992,29993,29994,29999]} 1. e4 {[%emt 0:00:51]} d6 {[%emt 0:00:00]} 2. d4 {[%emt 0:00:11]} g6 {[%emt 0:00:05]} 3. Nc3 {[%emt 0:00:17]} Bg7 {[%emt 0:00:12]} 4. Be3 {[%emt 0:00:12]} a6 {[%emt 0:00:31]} 5. Qd2 {[%emt 0:00:37]} b5 {[%emt 0:00:48]} 6. O-O-O {[%emt 0:01:09]} Bb7 {[%emt 0:00:39] B06: Modern Defence} (6... Nd7 7. h4 h6 8. f4 h5 9. Nf3 Nb6 10. Bd3 Nh6 11. Rhf1 Ng4 12. Bg1 b4 13. Ne2 a5 14. Kb1 Ba6 15. Bxa6 Rxa6 {1-0 (34) Morozevich,A (2676)-Vavulin,M (2575) Moscow 2017}) 7. f3 {[%emt 0:00:15]} e6 {[%emt 0:01:26]} 8. h4 {[%emt 0:01:06]} h6 {[%emt 0:06:42]} 9. g4 {[%emt 0:04:18]} Nd7 {[%emt 0:00:41]} 10. Nce2 $146 {[%emt 0:10:30]} ({Predecessor:} 10. Kb1 Ne7 11. Qf2 d5 12. exd5 Nxd5 13. Nxd5 Bxd5 {1-0 (54) Nikologorskiy,K (2410)-Kravchenko,V (2377) Suzdal 2016}) 10... Ne7 {[%emt 0:02:46]} 11. Ng3 {[%emt 0:02:41]} Rc8 {[%emt 0:08:33]} 12. Bg2 {[%emt 0:06:28]} c5 {[%emt 0:01:55]} 13. dxc5 {[%emt 0:01:09]} dxc5 {[%emt 0:00:34]} 14. f4 {[%emt 0:05:52]} c4 {[%emt 0:08:13]} 15. Bd4 {[%emt 0:07:05]} ({White should try} 15. N1e2 $16) 15... c3 {[%emt 0:04:01] X-Ray Attack} 16. bxc3 {[%emt 0:00:39]} (16. Bxc3 $11 Bxc3 17. bxc3) 16... e5 {[%emt 0:01:17]} 17. fxe5 {[%emt 0:00:52]} Nxe5 {[%emt 0:05:26]} 18. Nf3 {[%emt 0:11:16]} N7c6 {[%emt 0:20:27]} 19. Nxe5 {[%emt 0:02:52]} Nxe5 {[%emt 0:00:22]} 20. Bxe5 {[%emt 0:09:31]} Bxe5 {[%emt 0:00:48]} 21. Qxd8+ {[%emt 0:00:29]} Rxd8 {[%emt 0:00:05]} 22. Rxd8+ {[%emt 0:00:08]} Kxd8 {[%emt 0:00:06]} 23. Ne2 {[%emt 0:00:07]} f5 {[%emt 0:05:03]} 24. h5 {[%emt 0:12:32]} fxg4 {[%emt 0:04:08]} 25. hxg6 {[%emt 0:00:25]} h5 {[%emt 0:00:44]} 26. Nd4 {[%emt 0:03:22]} Ke7 {[%emt 0:07:14]} 27. Nf5+ {[%emt 0:01:06]} Kf8 {[%emt 0:02:59]} 28. Rf1 {[%emt 0:02:49] [#]} (28. Rd1 $11 {remains equal.} Ke8 29. g7) 28... h4 $2 {[%emt 0:03:45] [#]} (28... Bc8 $1 $17 {stays on course.} 29. c4 bxc4) 29. Nxh4+ {[%emt 0:01:31]} ({White should play} 29. Nh6+ $1 $16 Ke8 30. Nxg4 Bxc3 31. Rf7) 29... Kg7 $2 {[%emt 0:00:15]} (29... Ke8 $11 30. Nf5 Bc8) 30. Rf7+ {[%emt 0:00:13]} Kg8 {[%emt 0:00:31]} 31. Nf5 {[%emt 0:00:39]} Rh2 {[%emt 0:00:36]} 32. Rxb7 {[%emt 0:01:50]} Rxg2 {[%emt 0:00:26]} 33. Re7 {[%emt 0:00:11]} Bf4+ {[%emt 0:01:27]} 34. Kb2 {[%emt 0:00:10]} Rg3 {[%emt 0:22:55]} 1-0

[Event "43rd Blackpool Chess Conference 2019"]
[Site "Blackpool"]
[Date "2019.03.08"]
[Round "1.7"]
[White "Allis, Richard"]
[Black "Okhai, Shabir"]
[Result "*"]
[ECO "A46"]
[WhiteElo "2052"]
[BlackElo "2073"]
[Annotator "NA RC"]
[PlyCount "28"]
[EventDate "2019.03.08"]
[EventType "swiss"]
[EventCountry "ENG"]
[SourceTitle "playchess.com"]
[Source "ChessBase"]
[SourceQuality "1"]
[TimeControl "6600+10"]

1. d4 {[%emt 0:00:00]} Nf6 {[%emt 0:00:00]} 2. Nf3 {[%emt 0:00:00]} e6 {[%emt 0:00:00]} 3. Bg5 {[%emt 0:00:04]} c5 {[%emt 0:02:34]} 4. c3 {[%emt 0:00:20]} d5 {[%emt 0:03:17]} 5. Nbd2 {[%emt 0:00:11]} cxd4 {[%emt 0:02:23]} 6. Nxd4 {[%emt 0:00:14]} Be7 {[%emt 0:01:36]} 7. e3 {[%emt 0:00:18]} O-O {[%emt 0:01:14]} 8. f4 {[%emt 0:01:03]} Nc6 {[%emt 0:01:44]} 9. Bd3 {[%emt 0:00:28]} e5 {[%emt 0:07:08]} 10. Nxc6 {[%emt 0:03:22]} bxc6 {[%emt 0:00:12]} 11. fxe5 {[%emt 0:00:13]} Ng4 {[%emt 0:01:17]} 12. Bf4 {[%emt 0:01:16]} Bc5 {[%emt 0:13:12]} 13. Nb3 {[%emt 0:05:22]} Bxe3 {[%emt 0:04:17]} 14. Bxh7+ {[%emt 0:00:17]} (14. Qf3 $17 Bxf4 15. Qxf4) 14... Kh8 $19 {[%emt 0:05:55]} *

[Event "43rd Blackpool Chess Conference 2019"]
[Site "Blackpool"]
[Date "2019.03.08"]
[Round "1.9"]
[White "Ther, Mate"]
[Black "White, Stuart A"]
[Result "*"]
[ECO "D10"]
[WhiteElo "1895"]
[BlackElo "2108"]
[Annotator "RC"]
[PlyCount "33"]
[EventDate "2019.03.08"]
[EventType "swiss"]
[EventCountry "ENG"]
[SourceTitle "playchess.com"]
[Source "ChessBase"]
[SourceQuality "1"]
[TimeControl "6600+10"]

1. d4 {[%emt 0:00:00]} Nf6 {[%emt 0:00:00]} 2. Bf4 {[%emt 0:00:27]} d5 {[%emt 0:02:01]} 3. e3 {[%emt 0:00:16]} Bf5 {[%emt 0:01:57]} 4. c4 {[%emt 0:00:20]} c6 {[%emt 0:07:45]} 5. Nc3 {[%emt 0:01:07]} e6 {[%emt 0:00:13]} 6. Qb3 {[%emt 0:00:19]} dxc4 {[%emt 0:04:18]} 7. Qxb7 {[%emt 1:48:41]} Nbd7 8. Bxc4 {[%emt 0:00:00]} Nd5 {[%emt 0:03:27]} 9. Bxd5 {[%emt 0:00:00]} cxd5 {[%emt 0:00:29]} 10. Nf3 {[%emt 0:00:00]} Be7 {[%emt 0:00:43]} 11. O-O {[%emt 0:00:00]} O-O {[%emt 0:02:14]} 12. Rfc1 {[%emt 0:00:00]} Nb6 {[%emt 0:15:24]} 13. Nb5 {[%emt 0:00:00]} Nc4 {[%emt 0:03:19]} 14. b3 {[%emt 0:00:00]} Nd6 {[%emt 0:00:49]} 15. Bxd6 {[%emt 0:00:00]} Bxd6 {[%emt 0:00:04]} 16. Nxd6 {[%emt 0:00:00]} Qxd6 {[%emt 0:00:01]} 17. Qc6 {[%emt 0:00:00]} *

[Event "43rd Blackpool Chess Conference 2019"]
[Site "Blackpool"]
[Date "2019.03.08"]
[Round "1.10"]
[White "Watson, Phil R"]
[Black "Camp, Imogen A L"]
[Result "*"]
[ECO "D00"]
[WhiteElo "2132"]
[BlackElo "1827"]
[Annotator "NA RC"]
[PlyCount "27"]
[EventDate "2019.03.08"]
[EventType "swiss"]
[EventCountry "ENG"]
[SourceTitle "playchess.com"]
[Source "ChessBase"]
[SourceQuality "1"]
[TimeControl "6600+10"]

1. d4 {[%emt 0:01:08]} d5 {[%emt 0:00:04]} 2. Bf4 {[%emt 0:01:11]} Nf6 {[%emt 0:00:11]} 3. Nc3 {[%emt 0:00:33]} Bf5 {[%emt 0:03:32]} 4. f3 {[%emt 0:00:51]} e6 {[%emt 0:02:46]} 5. g4 {[%emt 0:00:28]} Bg6 {[%emt 0:00:23]} 6. h4 {[%emt 0:00:25]} h6 {[%emt 0:04:42]} 7. e3 {[%emt 0:02:51]} Bd6 {[%emt 0:04:21]} 8. Nh3 {[%emt 0:01:20]} c6 {[%emt 0:05:14]} 9. Bd3 {[%emt 0:01:18]} Bxd3 {[%emt 0:04:36]} 10. Qxd3 {[%emt 0:00:10]} Bxf4 {[%emt 0:07:48]} 11. Nxf4 {[%emt 0:00:59]} Nbd7 {[%emt 0:01:37]} 12. O-O-O {[%emt 0:00:50]} Nb6 {[%emt 0:06:16]} 13. g5 {[%emt 0:10:59]} Nfd7 {[%emt 0:02:03]} 14. g6 {[%emt 0:05:22]} *

[Event "43rd Blackpool Chess Conference 2019"]
[Site "Blackpool"]
[Date "2019.03.08"]
[Round "1.11"]
[White "Harkness, Bryan"]
[Black "Fallowfield, Jeremy R"]
[Result "*"]
[ECO "D00"]
[WhiteElo "1935"]
[BlackElo "2134"]
[Annotator "NA RC"]
[PlyCount "26"]
[EventDate "2019.03.08"]
[EventType "swiss"]
[EventCountry "ENG"]
[SourceTitle "playchess.com"]
[Source "ChessBase"]
[SourceQuality "1"]
[TimeControl "6600+10"]

{[%evp 15,25,0,52,32767,28,33,32767,32767,56,39,32767,6]} 1. d4 {[%emt 0:01:08]} d5 {[%emt 0:00:04]} 2. Bf4 {[%emt 0:01:11]} Nf6 {[%emt 0:00:11]} 3. Nc3 {[%emt 0:00:33]} Bf5 {[%emt 0:03:32]} 4. f3 {[%emt 0:00:51]} e6 {[%emt 0:02:46]} 5. g4 {[%emt 0:00:28]} Bg6 {[%emt 0:00:23]} 6. h4 {[%emt 0:00:25]} h6 {[%emt 0:04:42]} 7. e3 {[%emt 0:02:51]} Bd6 {[%emt 0:04:21]} 8. Nh3 {[%emt 0:01:20]} c6 {[%emt 0:05:14]} 9. Bd3 {[%emt 0:01:18]} Bxd3 {[%emt 0:04:36]} 10. Qxd3 {[%emt 0:00:10]} Bxf4 {[%emt 0:07:48]} 11. Nxf4 {[%emt 0:00:59]} Nbd7 {[%emt 0:01:37]} 12. O-O-O {[%emt 0:00:50]} Nb6 {[%emt 0:06:16]} 13. g5 $11 {[%emt 0:10:59]} Nfd7 {[%emt 0:02:03]} *

[Event "43rd Blackpool Chess Conference 2019"]
[Site "Blackpool"]
[Date "2019.03.09"]
[Round "2.3"]
[White "Okhai, Shabir"]
[Black "McPhillips, Joseph"]
[Result "0-1"]
[ECO "C11"]
[WhiteElo "2073"]
[BlackElo "2407"]
[Annotator "NA"]
[PlyCount "76"]
[EventDate "2019.03.08"]
[EventType "swiss"]
[EventCountry "ENG"]
[SourceTitle "playchess.com"]
[Source "ChessBase"]
[SourceQuality "1"]
[TimeControl "6600+10"]

1. e4 {[%emt 0:01:55]} e6 {[%emt 0:00:00]} 2. d4 {[%emt 0:00:05]} d5 {[%emt 0:00:00]} 3. Nc3 {[%emt 0:01:08]} Nf6 {[%emt 0:00:04]} 4. e5 {[%emt 0:00:05]} Nfd7 {[%emt 0:00:05]} 5. f4 {[%emt 0:00:06]} c5 {[%emt 0:00:05]} 6. Nf3 {[%emt 0:00:03]} Nc6 {[%emt 0:00:05]} 7. Be3 {[%emt 0:00:04]} Be7 {[%emt 0:00:13]} 8. Qd2 {[%emt 0:00:06]} O-O {[%emt 0:00:08]} 9. dxc5 {[%emt 0:00:20]} Qa5 {[%emt 0:03:45] C11: French: Classical System: 4 e5 and 4 Bg5 dxe4} 10. a3 {[%emt 0:01:04]} Nxc5 $146 {[%emt 0:04:18]} ({Predecessor:} 10... Bxc5 11. Bxc5 Nxc5 12. Bd3 Bd7 13. O-O Nxd3 14. cxd3 Rac8 15. Qf2 Qa6 16. Rad1 b5 17. f5 exf5 18. Nxd5 {1-0 (37) Anand,V (2773)-Christiansen,J (2555) St Petersburg 2018}) 11. Nd4 {[%emt 0:08:30]} Qc7 {[%emt 0:04:34]} 12. Ndb5 {[%emt 0:04:59]} Qb8 {[%emt 0:02:00]} 13. Qf2 {[%emt 0:02:47]} b6 {[%emt 0:02:32]} 14. Be2 {[%emt 0:09:40]} f6 {[%emt 0:17:12]} 15. Nd4 {[%emt 0:04:45]} Nxe5 {[%emt 0:08:48]} 16. fxe5 {[%emt 0:04:06]} (16. b4 $11 Nb7 17. f5 (17. fxe5 fxe5 {[%mdl 64] Discovered Attack} 18. Nf3 e4 $17)) 16... fxe5 {[%emt 0:00:46]} 17. Nc6 {[%emt 0:05:17]} (17. Nf3 $17 e4 18. O-O-O) 17... Rxf2 {[%emt 0:00:28]} 18. Nxb8 {[%emt 0:01:26] [#]} Rxe2+ $1 {[%emt 0:01:38]} 19. Nxe2 {[%emt 0:01:11]} Rxb8 {[%emt 0:00:02]} 20. Ng3 {[%emt 0:07:51]} Ba6 {[%emt 0:02:05]} 21. O-O-O {[%emt 0:01:45]} Rc8 {[%emt 0:02:10]} 22. Kb1 {[%emt 0:01:44]} Bh4 $17 {[%emt 0:01:47]} 23. Bf2 {[%emt 0:04:28]} Rf8 {[%emt 0:05:42]} 24. Be1 {[%emt 0:01:34]} g6 {[%emt 0:02:41]} 25. Ne4 {[%emt 0:05:45]} Nxe4 {[%emt 0:03:29]} 26. Bxh4 {[%emt 0:00:07]} Nf2 {[%emt 0:00:10]} 27. Bxf2 {[%emt 0:01:01]} Rxf2 {[%emt 0:00:04]} 28. Rde1 {[%emt 0:03:17]} e4 {[%emt 0:00:10]} 29. Rhg1 {[%emt 0:00:08]} Kg7 {[%emt 0:00:44]} 30. b3 {[%emt 0:04:12]} Be2 {[%emt 0:03:27]} 31. Kc1 {[%emt 0:10:38]} d4 {[%emt 0:02:17]} 32. g4 {[%emt 0:02:27]} Kf6 {[%emt 0:04:08]} 33. Rg3 {[%emt 0:03:10]} Rxh2 {[%emt 0:01:13]} 34. Rgg1 {[%emt 0:03:35]} Bf3 {[%emt 0:00:50]} 35. Rgf1 {[%emt 0:00:24]} Kg5 {[%emt 0:00:37]} 36. Rg1 {[%emt 0:00:13]} e5 {[%emt 0:01:09]} 37. b4 {[%emt 0:00:34]} e3 {[%emt 0:00:48]} 38. Rg3 {[%emt 0:01:00]} Be4 {[%emt 0:00:58]} 0-1